[Event "*** Titled Tuesday 3|2 Blitz"]
[Site "Chess.com"]
[Date "2016.07.05"]
[Round "4"]
[White "annakantane"]
[Black "thymathgeek"]
[Result "1-0"]
[WhiteElo "2269"]
[BlackElo "2069"]
[TimeControl "180+2"]
[EndTime "11:48:24 PDT"]
[Termination "annakantane won by resignation"]

1. e4 {[%clk 0:03:01.9]} 1... e5 {[%clk 0:03:00]} 2. Nf3 {[%clk 0:03:00.5]} 2...
Nc6 {[%clk 0:03:01.4]} 3. Bb5 {[%clk 0:03:01.5]} 3... a6 {[%clk 0:03:02.8]} 4.
Ba4 {[%clk 0:03:02.4]} 4... Nf6 {[%clk 0:03:04.5]} 5. O-O {[%clk 0:03:02.4]}
5... Be7 {[%clk 0:03:05]} 6. Re1 {[%clk 0:03:02.6]} 6... b5 {[%clk 0:03:06.1]}
7. Bb3 {[%clk 0:03:03.8]} 7... d6 {[%clk 0:03:07.8]} 8. c3 {[%clk 0:03:03.4]}
8... O-O {[%clk 0:03:08.8]} 9. h3 {[%clk 0:03:04.6]} 9... Re8 {[%clk 0:03:08.5]}
10. d4 {[%clk 0:02:56.6]} 10... Bf8 {[%clk 0:03:07.2]} 11. Nbd2 {[%clk
0:02:44.5]} 11... Bb7 {[%clk 0:03:07.8]} 12. Bc2 {[%clk 0:02:32.3]} 12... Nb8
{[%clk 0:02:45.2]} 13. b3 {[%clk 0:02:23.5]} 13... c5 {[%clk 0:02:45]} 14. Bb2
{[%clk 0:02:22.2]} 14... Nc6 {[%clk 0:02:44.1]} 15. d5 {[%clk 0:01:47.5]} 15...
Ne7 {[%clk 0:02:36.5]} 16. c4 {[%clk 0:01:48.5]} 16... g6 {[%clk 0:02:28.8]} 17.
cxb5 {[%clk 0:01:44.5]} 17... axb5 {[%clk 0:02:29.7]} 18. a4 {[%clk 0:01:45.6]}
18... bxa4 {[%clk 0:02:23.4]} 19. bxa4 {[%clk 0:01:47.5]} 19... Bg7 {[%clk
0:02:17.9]} 20. Nc4 {[%clk 0:01:47.7]} 20... Ba6 {[%clk 0:02:16.4]} 21. Bd3
{[%clk 0:01:47.6]} 21... Nh5 {[%clk 0:02:14.5]} 22. g3 {[%clk 0:01:29.2]} 22...
f5 {[%clk 0:01:54.5]} 23. exf5 {[%clk 0:01:29.5]} 23... gxf5 {[%clk 0:01:55.1]}
24. Ng5 {[%clk 0:01:23.4]} 24... Nf6 {[%clk 0:01:20.3]} 25. Ne6 {[%clk 0:01:24]}
25... Qb8 {[%clk 0:01:20.9]} 26. Nxg7 {[%clk 0:01:21.9]} 26... Kxg7 {[%clk
0:01:22]} 27. Rb1 {[%clk 0:01:20.8]} 27... Qc7 {[%clk 0:01:10.7]} 28. f4 {[%clk
0:00:59]} 28... e4 {[%clk 0:01:10.5]} 29. Qh5 {[%clk 0:00:34.3]} 29... Nxd5
{[%clk 0:00:44.9]} 30. Qxf5 {[%clk 0:00:35.1]} 30... exd3 {[%clk 0:00:43.3]} 31.
Qxd5 {[%clk 0:00:35.9]} 31... Qf7 {[%clk 0:00:34.5]} 32. Qg5+ {[%clk 0:00:20]}
32... Qg6 {[%clk 0:00:32.4]} 33. Bxf6+ {[%clk 0:00:20.4]} 33... Kg8 {[%clk
0:00:30.3]} 34. Qd5+ {[%clk 0:00:18.5]} 34... Qf7 {[%clk 0:00:31.6]} 35. Qxf7+
{[%clk 0:00:17.1]} 35... Kxf7 {[%clk 0:00:33]} 36. Nxd6+ {[%clk 0:00:18.7]}
36... Kxf6 {[%clk 0:00:32.3]} 37. Nxe8+ {[%clk 0:00:20.6]} 37... Kg6 {[%clk
0:00:29.9]} 38. Nc7 {[%clk 0:00:19.8]} 38... Ra7 {[%clk 0:00:27.9]} 39. Re6+
{[%clk 0:00:20]} 39... Kf5 {[%clk 0:00:29]} 40. Re5+ {[%clk 0:00:20.7]} 40...
Kg6 {[%clk 0:00:29.2]} 41. Nxa6 {[%clk 0:00:22.1]} 41... Rxa6 {[%clk 0:00:30]}
42. Rxc5 {[%clk 0:00:22.7]} 42... Rxa4 {[%clk 0:00:30.1]} 43. Rd1 {[%clk
0:00:24.2]} 43... Ra3 {[%clk 0:00:28.3]} 44. Rd5 {[%clk 0:00:25]} 44... d2
{[%clk 0:00:29.7]} 45. Kg2 {[%clk 0:00:26]} 1-0

[Event "*** Titled Tuesday 3|2 Blitz"]
[Site "Chess.com"]
[Date "2016.07.05"]
[Round "4"]
[White "akinov-akinseye"]
[Black "Wolverine_master"]
[Result "1-0"]
[WhiteElo "1829"]
[BlackElo "2016"]
[TimeControl "180+2"]
[EndTime "11:48:26 PDT"]
[Termination "akinov-akinseye won by resignation"]

1. e4 {[%clk 0:03:01.9]} 1... e5 {[%clk 0:02:34.9]} 2. Nf3 {[%clk 0:03:00.1]}
2... Nc6 {[%clk 0:02:35.9]} 3. d4 {[%clk 0:02:58]} 3... exd4 {[%clk 0:02:36.7]}
4. Nxd4 {[%clk 0:02:55.7]} 4... Bc5 {[%clk 0:02:37.5]} 5. Be3 {[%clk 0:02:53.9]}
5... Qf6 {[%clk 0:02:37.6]} 6. c3 {[%clk 0:02:47.9]} 6... Nge7 {[%clk
0:02:38.6]} 7. Bc4 {[%clk 0:02:43.4]} 7... O-O {[%clk 0:02:38]} 8. O-O {[%clk
0:02:42.1]} 8... Bb6 {[%clk 0:02:37.4]} 9. Bb3 {[%clk 0:02:38.3]} 9... d6 {[%clk
0:02:37.4]} 10. Nb5 {[%clk 0:02:36.1]} 10... a6 {[%clk 0:02:14]} 11. Bxb6 {[%clk
0:02:33.4]} 11... axb5 {[%clk 0:02:15.2]} 12. Bxc7 {[%clk 0:02:31.5]} 12... Na5
{[%clk 0:02:08.3]} 13. Na3 {[%clk 0:02:26.6]} 13... Nxb3 {[%clk 0:02:08.6]} 14.
Qxb3 {[%clk 0:02:23.5]} 14... Be6 {[%clk 0:01:52.8]} 15. Qxb5 {[%clk 0:02:21]}
15... d5 {[%clk 0:01:53.7]} 16. Qxb7 {[%clk 0:02:18.7]} 16... dxe4 {[%clk
0:01:40.8]} 17. Qxe4 {[%clk 0:02:16.5]} 17... Qg5 {[%clk 0:01:36.5]} 18. Bf4
{[%clk 0:02:05.9]} 18... Qg4 {[%clk 0:01:30.1]} 19. f3 {[%clk 0:02:03.8]} 19...
Qh5 {[%clk 0:01:30.9]} 20. Bd6 {[%clk 0:02:01.8]} 20... Rae8 {[%clk 0:01:21.5]}
21. Rfe1 {[%clk 0:01:57.4]} 21... Qa5 {[%clk 0:01:16.1]} 22. Qb7 {[%clk
0:01:53.3]} 22... Bd5 {[%clk 0:01:07.2]} 23. Qb5 {[%clk 0:01:48.7]} 23... Qa7+
{[%clk 0:01:00.1]} 24. Bc5 {[%clk 0:01:45.4]} 24... Qc7 {[%clk 0:00:48.9]} 25.
Bxe7 {[%clk 0:01:42.5]} 25... Rxe7 {[%clk 0:00:48]} 26. Rxe7 {[%clk 0:01:40.2]}
26... Qxe7 {[%clk 0:00:49.5]} 27. Qxd5 {[%clk 0:01:38.5]} 27... Qe3+ {[%clk
0:00:50.4]} 28. Kh1 {[%clk 0:01:35.3]} 28... Qe2 {[%clk 0:00:31.5]} 29. Qb3
{[%clk 0:01:30.5]} 29... Re8 {[%clk 0:00:32.3]} 30. h3 {[%clk 0:01:24.1]} 30...
h5 {[%clk 0:00:33.2]} 31. Nc4 {[%clk 0:01:21.4]} 31... Qf2 {[%clk 0:00:31.2]}
32. Qb5 {[%clk 0:01:17.9]} 32... Re2 {[%clk 0:00:29.1]} 33. Rg1 {[%clk 0:01:15]}
33... h4 {[%clk 0:00:29.6]} 34. a4 {[%clk 0:01:12.7]} 34... Qg3 {[%clk
0:00:19.8]} 35. a5 {[%clk 0:01:08.5]} 35... Rf2 {[%clk 0:00:20.6]} 36. Qe8+
{[%clk 0:01:05.2]} 36... Kh7 {[%clk 0:00:20.6]} 37. Qxf7 {[%clk 0:01:02.5]}
37... Re2 {[%clk 0:00:13.6]} 38. a6 {[%clk 0:01:00.6]} 38... Qb8 {[%clk
0:00:10]} 39. a7 {[%clk 0:00:54.5]} 39... Qg3 {[%clk 0:00:10.6]} 40. Qh5+ {[%clk
0:00:52.1]} 1-0

[Event "*** Titled Tuesday 3|2 Blitz"]
[Site "Chess.com"]
[Date "2016.07.05"]
[Round "4"]
[White "proxy6"]
[Black "eltenedor"]
[Result "0-1"]
[WhiteElo "1891"]
[BlackElo "2012"]
[TimeControl "180+2"]
[EndTime "11:48:44 PDT"]
[Termination "eltenedor won on time"]

1. e4 {[%clk 0:02:56.6]} 1... d5 {[%clk 0:02:59.8]} 2. exd5 {[%clk 0:02:56.1]}
2... Nf6 {[%clk 0:03:00.4]} 3. d4 {[%clk 0:02:55.3]} 3... Nxd5 {[%clk
0:02:59.4]} 4. Bd3 {[%clk 0:02:55.8]} 4... g6 {[%clk 0:02:50.8]} 5. Nf3 {[%clk
0:02:50.2]} 5... Bg7 {[%clk 0:02:50.4]} 6. O-O {[%clk 0:02:50]} 6... O-O {[%clk
0:02:50.3]} 7. c3 {[%clk 0:02:40.4]} 7... Nd7 {[%clk 0:02:49.4]} 8. Re1 {[%clk
0:02:38.9]} 8... c5 {[%clk 0:02:47.3]} 9. Nbd2 {[%clk 0:02:28.1]} 9... cxd4
{[%clk 0:02:45.5]} 10. Nxd4 {[%clk 0:02:23]} 10... Nc5 {[%clk 0:02:26.4]} 11.
Bc2 {[%clk 0:02:12.8]} 11... e5 {[%clk 0:02:19.8]} 12. N4b3 {[%clk 0:02:11.7]}
12... Ne6 {[%clk 0:02:12.6]} 13. Nf3 {[%clk 0:02:07.6]} 13... f6 {[%clk
0:02:03.6]} 14. Be4 {[%clk 0:01:58.1]} 14... Ne7 {[%clk 0:01:45]} 15. Be3 {[%clk
0:01:38.2]} 15... f5 {[%clk 0:01:36.6]} 16. Bc2 {[%clk 0:01:36.6]} 16... b6
{[%clk 0:00:43.4]} 17. a4 {[%clk 0:01:27]} 17... Bb7 {[%clk 0:00:38.5]} 18. Ng5
{[%clk 0:01:24.3]} 18... Nxg5 {[%clk 0:00:30]} 19. Bxg5 {[%clk 0:01:26.2]} 19...
Qc7 {[%clk 0:00:27.9]} 20. Qe2 {[%clk 0:01:15.1]} 20... h6 {[%clk 0:00:25.1]}
21. Bxe7 {[%clk 0:01:05.2]} 21... Qxe7 {[%clk 0:00:25.3]} 22. a5 {[%clk
0:01:04.3]} 22... Rae8 {[%clk 0:00:22.7]} 23. axb6 {[%clk 0:01:03.9]} 23... axb6
{[%clk 0:00:23.3]} 24. Qb5 {[%clk 0:00:58.6]} 24... Qc7 {[%clk 0:00:22]} 25. Nd2
{[%clk 0:00:54.9]} 25... e4 {[%clk 0:00:20.9]} 26. Bb3+ {[%clk 0:00:53.8]} 26...
Kh8 {[%clk 0:00:20.5]} 27. Nf1 {[%clk 0:00:54.2]} 27... Re5 {[%clk 0:00:21]} 28.
Qb4 {[%clk 0:00:49.7]} 28... Qc6 {[%clk 0:00:20.1]} 29. Qc4 {[%clk 0:00:41.3]}
29... Rc5 {[%clk 0:00:19]} 30. Qe6 {[%clk 0:00:42.2]} 30... Qc7 {[%clk
0:00:17.9]} 31. Qxg6 {[%clk 0:00:37.2]} 31... f4 {[%clk 0:00:18]} 32. h4 {[%clk
0:00:25.9]} 32... Qe7 {[%clk 0:00:14.1]} 33. Ra7 {[%clk 0:00:17.5]} 33... Rc7
{[%clk 0:00:12.9]} 34. h5 {[%clk 0:00:12.5]} 34... f3 {[%clk 0:00:12.4]} 35. Ne3
{[%clk 0:00:11.2]} 35... Rf6 {[%clk 0:00:13.2]} 36. Qg3 {[%clk 0:00:10.5]} 36...
Qc5 {[%clk 0:00:11.6]} 37. Rd1 {[%clk 0:00:05.8]} 37... Rf8 {[%clk 0:00:11.3]}
38. Raa1 {[%clk 0:00:04.4]} 38... Qxh5 {[%clk 0:00:11.9]} 39. Qxc7 {[%clk
0:00:03.8]} 39... Bc8 {[%clk 0:00:09.5]} 40. Qd6 {[%clk 0:00:02.3]} 40... fxg2
{[%clk 0:00:09.1]} 0-1

[Event "*** Titled Tuesday 3|2 Blitz"]
[Site "Chess.com"]
[Date "2016.07.05"]
[Round "4"]
[White "oggy1984"]
[Black "Gabrielian_Artur"]
[Result "0-1"]
[WhiteElo "2300"]
[BlackElo "2482"]
[TimeControl "180+2"]
[EndTime "11:48:46 PDT"]
[Termination "Gabrielian_Artur won by resignation"]

1. e4 {[%clk 0:03:01.9]} 1... c5 {[%clk 0:03:00.7]} 2. Nf3 {[%clk 0:03:01.5]}
2... d6 {[%clk 0:03:01.5]} 3. d4 {[%clk 0:03:01.9]} 3... cxd4 {[%clk 0:03:02.3]}
4. Qxd4 {[%clk 0:03:03.8]} 4... Nc6 {[%clk 0:03:02.5]} 5. Bb5 {[%clk 0:03:03.6]}
5... Bd7 {[%clk 0:03:03.4]} 6. Bxc6 {[%clk 0:03:04.5]} 6... Bxc6 {[%clk
0:03:04.8]} 7. Nc3 {[%clk 0:03:04.4]} 7... Nf6 {[%clk 0:03:05.9]} 8. Bg5 {[%clk
0:03:05.1]} 8... e6 {[%clk 0:03:06]} 9. O-O-O {[%clk 0:03:04]} 9... Be7 {[%clk
0:03:06.7]} 10. Qd2 {[%clk 0:03:01.1]} 10... O-O {[%clk 0:03:07.2]} 11. Rhe1
{[%clk 0:02:33.7]} 11... h6 {[%clk 0:02:34.7]} 12. Bf4 {[%clk 0:02:28.4]} 12...
e5 {[%clk 0:02:33.3]} 13. Be3 {[%clk 0:02:16.1]} 13... b5 {[%clk 0:02:20.8]} 14.
g4 {[%clk 0:02:05.4]} 14... b4 {[%clk 0:02:21.3]} 15. Nd5 {[%clk 0:02:05.6]}
15... Nxe4 {[%clk 0:02:13]} 16. Qd3 {[%clk 0:01:57.3]} 16... Bxd5 {[%clk
0:02:12.7]} 17. Qxd5 {[%clk 0:01:54.5]} 17... Nf6 {[%clk 0:02:13.9]} 18. Qd2
{[%clk 0:01:54.5]} 18... Nxg4 {[%clk 0:02:07.2]} 19. Rg1 {[%clk 0:01:50.2]}
19... Nxe3 {[%clk 0:02:08]} 20. Qxe3 {[%clk 0:01:50.2]} 20... Kh8 {[%clk
0:02:08.9]} 21. Nxe5 {[%clk 0:01:24.4]} 21... Bg5 {[%clk 0:01:54.3]} 22. f4
{[%clk 0:00:51.9]} 22... dxe5 {[%clk 0:01:14.3]} 23. fxg5 {[%clk 0:00:51.3]}
23... Qb6 {[%clk 0:01:14.6]} 24. Qxe5 {[%clk 0:00:32]} 24... Rae8 {[%clk
0:00:56.6]} 25. Qf5 {[%clk 0:00:22.8]} 25... g6 {[%clk 0:00:52.1]} 26. Qg4
{[%clk 0:00:19.8]} 26... h5 {[%clk 0:00:53.1]} 27. Qc4 {[%clk 0:00:19.6]} 27...
a5 {[%clk 0:00:45.5]} 28. Rge1 {[%clk 0:00:19.1]} 28... Rc8 {[%clk 0:00:40.5]}
29. Qd5 {[%clk 0:00:19.6]} 29... Qc7 {[%clk 0:00:38.2]} 30. Qe5+ {[%clk
0:00:19.3]} 30... Kh7 {[%clk 0:00:38.1]} 31. Qxc7 {[%clk 0:00:20]} 31... Rxc7
{[%clk 0:00:39.6]} 32. Rd5 {[%clk 0:00:20.6]} 32... Rfc8 {[%clk 0:00:40.6]} 33.
Re2 {[%clk 0:00:21.1]} 33... a4 {[%clk 0:00:42.1]} 34. Kd1 {[%clk 0:00:21.7]}
34... Rc5 {[%clk 0:00:42.2]} 35. Rxc5 {[%clk 0:00:21.5]} 35... Rxc5 {[%clk
0:00:43.2]} 36. h4 {[%clk 0:00:22.8]} 36... Rc4 {[%clk 0:00:43.1]} 37. Re7
{[%clk 0:00:22.9]} 37... Kg7 {[%clk 0:00:43.8]} 38. Ra7 {[%clk 0:00:23.7]} 38...
Rxh4 {[%clk 0:00:29.3]} 39. Rxa4 {[%clk 0:00:24.4]} 39... Rg4 {[%clk 0:00:30.6]}
40. a3 {[%clk 0:00:24.1]} 40... h4 {[%clk 0:00:31.9]} 41. axb4 {[%clk
0:00:15.1]} 41... h3 {[%clk 0:00:31.7]} 42. Kd2 {[%clk 0:00:16.2]} 42... h2
{[%clk 0:00:32.4]} 0-1

[Event "*** Titled Tuesday 3|2 Blitz"]
[Site "Chess.com"]
[Date "2016.07.05"]
[Round "4"]
[White "FairChess_on_YouTube"]
[Black "E-Shaposhnikov"]
[Result "1/2-1/2"]
[WhiteElo "2726"]
[BlackElo "2649"]
[TimeControl "180+2"]
[EndTime "11:48:47 PDT"]
[Termination "Game drawn by repetition"]

1. Nf3 {[%clk 0:03:01.1]} 1... c5 {[%clk 0:03:00.2]} 2. g3 {[%clk 0:03:02]} 2...
g6 {[%clk 0:03:01.2]} 3. c3 {[%clk 0:02:59.9]} 3... Bg7 {[%clk 0:03:00.6]} 4. d4
{[%clk 0:03:01.5]} 4... cxd4 {[%clk 0:03:00]} 5. cxd4 {[%clk 0:03:03.4]} 5... d5
{[%clk 0:03:01.7]} 6. Bg2 {[%clk 0:03:04]} 6... Nc6 {[%clk 0:03:00.7]} 7. O-O
{[%clk 0:03:04.6]} 7... Nh6 {[%clk 0:03:02.3]} 8. Nc3 {[%clk 0:03:01.1]} 8...
Nf5 {[%clk 0:03:03.2]} 9. e3 {[%clk 0:03:01.4]} 9... O-O {[%clk 0:03:03.5]} 10.
b3 {[%clk 0:02:59.2]} 10... e6 {[%clk 0:02:57.8]} 11. Ba3 {[%clk 0:02:56]} 11...
Re8 {[%clk 0:02:58.3]} 12. Rc1 {[%clk 0:02:57.7]} 12... Bd7 {[%clk 0:02:50.2]}
13. Na4 {[%clk 0:02:53.8]} 13... b6 {[%clk 0:02:51]} 14. Nb2 {[%clk 0:02:53.8]}
14... h5 {[%clk 0:02:43.5]} 15. Nd3 {[%clk 0:02:53.8]} 15... Qb8 {[%clk
0:02:29.2]} 16. Rc2 {[%clk 0:02:49]} 16... a5 {[%clk 0:02:27.4]} 17. Qd2 {[%clk
0:02:45]} 17... a4 {[%clk 0:02:24.3]} 18. b4 {[%clk 0:02:28.2]} 18... Nd6 {[%clk
0:02:18.8]} 19. Rfc1 {[%clk 0:02:00.1]} 19... Rc8 {[%clk 0:02:11.5]} 20. Qe1
{[%clk 0:01:43.9]} 20... Qb7 {[%clk 0:02:03.5]} 21. Bb2 {[%clk 0:01:38.7]} 21...
Ne7 {[%clk 0:01:58.4]} 22. a3 {[%clk 0:01:32.9]} 22... Bb5 {[%clk 0:01:58.5]}
23. Bf1 {[%clk 0:01:32.6]} 23... Rxc2 {[%clk 0:01:54.2]} 24. Rxc2 {[%clk
0:01:34.5]} 24... Rc8 {[%clk 0:01:56]} 25. Qc1 {[%clk 0:01:33.3]} 25... Nef5
{[%clk 0:01:44.5]} 26. Nd2 {[%clk 0:01:27.3]} 26... Rxc2 {[%clk 0:01:37.1]} 27.
Qxc2 {[%clk 0:01:28.4]} 27... Qc8 {[%clk 0:01:29.4]} 28. Qxc8+ {[%clk
0:01:27.3]} 28... Nxc8 {[%clk 0:01:31.3]} 29. Nb1 {[%clk 0:01:26.3]} 29... Bc4
{[%clk 0:01:29.4]} 30. Nc3 {[%clk 0:01:26.3]} 30... b5 {[%clk 0:01:29.5]} 31.
Bc1 {[%clk 0:01:17.5]} 31... Nfd6 {[%clk 0:01:29.7]} 32. f3 {[%clk 0:01:07.2]}
32... Bh6 {[%clk 0:01:23.6]} 33. Kf2 {[%clk 0:01:06.3]} 33... Nf5 {[%clk
0:01:24]} 34. f4 {[%clk 0:00:49.4]} 34... Nfd6 {[%clk 0:01:15.7]} 35. Ne5 {[%clk
0:00:46.3]} 35... Bxf1 {[%clk 0:01:13.5]} 36. Kxf1 {[%clk 0:00:48.2]} 36... Nb6
{[%clk 0:01:11.2]} 37. Nc6 {[%clk 0:00:43.6]} 37... Nbc8 {[%clk 0:01:05.7]} 38.
Ke2 {[%clk 0:00:42.1]} 38... Bg7 {[%clk 0:01:03.5]} 39. Kd3 {[%clk 0:00:42.1]}
39... Kf8 {[%clk 0:01:04.2]} 40. e4 {[%clk 0:00:37.7]} 40... dxe4+ {[%clk
0:00:59.4]} 41. Nxe4 {[%clk 0:00:39.6]} 41... Nxe4 {[%clk 0:01:01.1]} 42. Kxe4
{[%clk 0:00:40.8]} 42... Nd6+ {[%clk 0:01:02.7]} 43. Kd3 {[%clk 0:00:39.3]}
43... Ke8 {[%clk 0:01:02.4]} 44. Ne5 {[%clk 0:00:34.7]} 44... Bxe5 {[%clk
0:00:52.3]} 45. dxe5 {[%clk 0:00:36.6]} 45... Nf5 {[%clk 0:00:53.7]} 46. Be3
{[%clk 0:00:33.7]} 46... Kd7 {[%clk 0:00:53.8]} 47. Bf2 {[%clk 0:00:33.9]} 47...
Kc6 {[%clk 0:00:54.3]} 48. Ke4 {[%clk 0:00:34.8]} 48... Kd7 {[%clk 0:00:50.3]}
49. h3 {[%clk 0:00:34.4]} 49... Kc6 {[%clk 0:00:51.1]} 50. Be1 {[%clk
0:00:26.5]} 50... Nh6 {[%clk 0:00:49.4]} 51. Bf2 {[%clk 0:00:27]} 51... Nf5
{[%clk 0:00:49.9]} 52. Be1 {[%clk 0:00:28]} 52... Nh6 {[%clk 0:00:51]} 53. Bf2
{[%clk 0:00:22.8]} 53... Nf5 {[%clk 0:00:51.3]} 1/2-1/2

[Event "*** Titled Tuesday 3|2 Blitz"]
[Site "Chess.com"]
[Date "2016.07.05"]
[Round "4"]
[White "ZapataCharlesS"]
[Black "Dlugy"]
[Result "1-0"]
[WhiteElo "2466"]
[BlackElo "2592"]
[TimeControl "180+2"]
[EndTime "11:48:47 PDT"]
[Termination "ZapataCharlesS won by resignation"]

1. e4 {[%clk 0:03:01.9]} 1... c5 {[%clk 0:03:00.7]} 2. c3 {[%clk 0:03:00.8]}
2... d5 {[%clk 0:03:01.8]} 3. exd5 {[%clk 0:03:01.6]} 3... Qxd5 {[%clk
0:03:03.4]} 4. d4 {[%clk 0:03:03.5]} 4... cxd4 {[%clk 0:03:05]} 5. Qxd4 {[%clk
0:02:57.2]} 5... Qxd4 {[%clk 0:03:05.4]} 6. cxd4 {[%clk 0:02:59.1]} 6... Nf6
{[%clk 0:03:03.2]} 7. Nf3 {[%clk 0:02:59.5]} 7... Nc6 {[%clk 0:03:03]} 8. Nc3
{[%clk 0:02:59.9]} 8... Nb4 {[%clk 0:02:59.8]} 9. Bb5+ {[%clk 0:02:56.5]} 9...
Bd7 {[%clk 0:03:00.8]} 10. O-O {[%clk 0:02:53.7]} 10... e6 {[%clk 0:02:56]} 11.
Bxd7+ {[%clk 0:02:48.6]} 11... Nxd7 {[%clk 0:02:56]} 12. a3 {[%clk 0:02:34.2]}
12... Nc6 {[%clk 0:02:41.8]} 13. d5 {[%clk 0:02:35]} 13... exd5 {[%clk
0:02:42.7]} 14. Nxd5 {[%clk 0:02:33.8]} 14... O-O-O {[%clk 0:02:42.9]} 15. Bf4
{[%clk 0:02:31.1]} 15... Nc5 {[%clk 0:02:36.6]} 16. Rad1 {[%clk 0:02:31.2]}
16... Ne6 {[%clk 0:02:37.6]} 17. Bg3 {[%clk 0:02:29.1]} 17... Bd6 {[%clk
0:02:17]} 18. Bxd6 {[%clk 0:02:14.3]} 18... Rxd6 {[%clk 0:02:17.5]} 19. Ne7+
{[%clk 0:02:16.2]} 19... Kc7 {[%clk 0:02:08.6]} 20. Nxc6 {[%clk 0:02:16.3]}
20... bxc6 {[%clk 0:02:04.9]} 21. Rxd6 {[%clk 0:02:15.9]} 21... Kxd6 {[%clk
0:02:06.2]} 22. Rd1+ {[%clk 0:02:17.5]} 22... Kc7 {[%clk 0:02:05.2]} 23. Ne5
{[%clk 0:02:15.4]} 23... Rd8 {[%clk 0:01:56.1]} 24. Rc1 {[%clk 0:02:01.6]} 24...
Nd4 {[%clk 0:01:57.1]} 25. Kf1 {[%clk 0:01:58.7]} 25... f6 {[%clk 0:01:55.1]}
26. Nc4 {[%clk 0:01:59.6]} 26... Nb3 {[%clk 0:01:52.9]} 27. Rc3 {[%clk
0:01:56.9]} 27... Rb8 {[%clk 0:01:33.9]} 28. h4 {[%clk 0:01:48.7]} 28... a5
{[%clk 0:01:34.7]} 29. h5 {[%clk 0:01:45.9]} 29... Nd4 {[%clk 0:01:02.6]} 30.
Rg3 {[%clk 0:01:28.1]} 30... Nf5 {[%clk 0:01:03.5]} 31. Rf3 {[%clk 0:01:27.2]}
31... Nd6 {[%clk 0:01:04.2]} 32. Nxd6 {[%clk 0:01:24.8]} 32... Kxd6 {[%clk
0:01:05.8]} 33. h6 {[%clk 0:01:26.7]} 33... gxh6 {[%clk 0:01:05.5]} 34. Rxf6+
{[%clk 0:01:27.1]} 34... Kc5 {[%clk 0:01:05]} 35. Rxh6 {[%clk 0:01:17.4]} 35...
Rxb2 {[%clk 0:01:05.4]} 36. Rxh7 {[%clk 0:01:18.9]} 36... Kd4 {[%clk 0:01:00]}
37. g4 {[%clk 0:00:59.9]} 37... c5 {[%clk 0:01:00.8]} 38. g5 {[%clk 0:01:00.8]}
38... Rb6 {[%clk 0:00:55.9]} 39. Kg2 {[%clk 0:00:48.7]} 39... c4 {[%clk
0:00:57]} 40. Rd7+ {[%clk 0:00:46.5]} 40... Ke4 {[%clk 0:00:55.7]} 41. Rc7
{[%clk 0:00:47.8]} 41... Kd3 {[%clk 0:00:56.3]} 42. f4 {[%clk 0:00:47.5]} 42...
c3 {[%clk 0:00:57.6]} 43. Kf3 {[%clk 0:00:45.7]} 43... c2 {[%clk 0:00:58.5]} 44.
f5 {[%clk 0:00:45.7]} 44... Rb1 {[%clk 0:00:43.1]} 45. g6 {[%clk 0:00:42.1]}
45... c1=Q {[%clk 0:00:29.5]} 46. Rxc1 {[%clk 0:00:41.2]} 46... Rxc1 {[%clk
0:00:31.4]} 47. g7 {[%clk 0:00:41.2]} 47... Rg1 {[%clk 0:00:22.9]} 48. f6 {[%clk
0:00:39.2]} 48... Kc4 {[%clk 0:00:23.9]} 49. f7 {[%clk 0:00:38.4]} 49... Rxg7
{[%clk 0:00:25.5]} 50. f8=Q {[%clk 0:00:38.8]} 50... Rb7 {[%clk 0:00:25.1]} 51.
Qc8+ {[%clk 0:00:35]} 1-0